bitfinex-derivatives/quotes_BTCF0:USTF0_20241020
["timestamp","ask_amount","ask_price","bid_price","bid_amount"]
[1729401437325,0.073189,68319.0,68318.0,0.39428179]
[1729401437654,0.073189,68319.0,68318.0,0.17498351]
[1729401437840,0.073189,68319.0,68318.0,0.39333282]
[1729401438343,0.073189,68319.0,68318.0,0.3202007]
[1729401439641,0.073189,68319.0,68318.0,0.32026696]
[1729401441033,0.073189,68319.0,68318.0,0.21834931]
[1729401441433,0.073191,68318.0,68317.0,0.21906599]
[1729401441746,0.0322,68324.0,68316.0,0.09970601]
[1729401442046,0.07319,68319.0,68317.0,0.21906599]
[1729401442741,0.0322,68324.0,68317.0,0.21906599]
[1729401443045,0.07319,68318.0,68317.0,0.21906599]
[1729401449152,0.07319,68318.0,68317.0,0.44301433]
[1729401456043,0.07319,68318.0,68317.0,0.21906599]
[1729401464258,0.07319,68318.0,68317.0,0.44300134]
[1729401470275,0.07319,68318.0,68317.0,0.32122806]
[1729401470874,0.07319,68318.0,68317.0,0.40910372]
[1729401471291,0.07319,68318.0,68317.0,0.21906599]
[1729401475593,0.0322,68324.0,68311.0,0.04393804]
[1729401475785,0.073204,68305.0,68298.0,0.04394145]
[1729401475980,0.073204,68305.0,68287.0,0.3608]
[1729401475981,0.073218,68293.0,68287.0,0.3608]
[1729401476188,0.073218,68292.0,68288.0,0.07780127]
[1729401476394,0.073208,68302.0,68289.0,0.0045793]
[1729401476583,0.28713494,68305.0,68295.0,0.073215]
[1729401476783,0.073211,68299.0,68295.0,0.073215]
[1729401476987,0.073211,68299.0,68296.0,0.2202391]
[1729401477991,0.073212,68298.0,68296.0,0.2202391]
[1729401478391,0.073212,68298.0,68294.0,0.21943573]
[1729401478700,0.073212,68298.0,68293.0,0.3608]
[1729401478988,0.073212,68298.0,68294.0,0.22401463]
[1729401479192,0.3608,68304.0,68295.0,0.22732486]
[1729401479393,0.07321,68300.0,68299.0,0.08763682]
[1729401479592,0.07321,68300.0,68299.0,0.18925631]
[1729401479789,0.07321,68300.0,68299.0,0.40934376]
[1729401480091,0.07321,68300.0,68299.0,0.32170694]
[1729401480589,0.07321,68300.0,68299.0,0.22008745]
[1729401480794,0.07321,68300.0,68299.0,0.32139807]
[1729401481196,0.07321,68300.0,68299.0,0.40903489]
[1729401481994,0.07321,68300.0,68299.0,0.32139807]
[1729401486394,0.07321,68300.0,68299.0,0.22008745]
[1729401486900,0.073214,68296.0,68293.0,0.22095388]
[1729401487083,0.073214,68296.0,68292.0,0.073218]
[1729401487489,0.073214,68296.0,68293.0,0.21964118]
[1729401488090,0.073215,68295.0,68293.0,0.21964118]
[1729401489196,0.073216,68294.0,68293.0,0.21964118]
[1729401489399,0.073216,68294.0,68293.0,0.22422027]
[1729401489606,0.073216,68294.0,68293.0,0.21964118]
[1729401489795,0.073216,68294.0,68293.0,0.22422032]
[1729401491903,0.073216,68294.0,68293.0,0.32566688]
[1729401492493,0.073216,68294.0,68293.0,0.68646688]
[1729401492804,0.073216,68294.0,68293.0,0.68646668]
[1729401493404,0.073216,68294.0,68293.0,0.68188774]
[1729401494202,0.073216,68294.0,68293.0,0.58044118]
[1729401498302,0.073216,68294.0,68293.0,0.65365818]
[1729401501206,0.02925946,68294.0,68293.0,0.87793394]
[1729401501420,0.073214,68296.0,68293.0,0.88983883]
[1729401501616,0.073214,68296.0,68294.0,0.23618065]
[1729401501817,0.073214,68296.0,68295.0,0.22885456]
[1729401502116,0.073214,68296.0,68295.0,0.44891412]
[1729401503017,0.073214,68296.0,68295.0,0.80971412]
[1729401503605,0.073214,68296.0,68295.0,0.80920687]
[1729401504306,0.073214,68296.0,68295.0,0.9505692]
[1729401505119,0.073214,68296.0,68295.0,0.95789529]
[1729401506819,0.073214,68296.0,68295.0,0.67031029]
[1729401507023,0.073214,68296.0,68295.0,1.03111029]
[1729401507522,0.073214,68296.0,68295.0,1.14828239]
[1729401507726,0.073214,68296.0,68295.0,1.14828238]
[1729401508328,0.073214,68296.0,68295.0,1.1363775]
[1729401509116,0.3608,68303.0,68295.0,1.1363775]
[1729401509425,0.073207,68302.0,68301.0,0.08788268]
[1729401509623,0.073207,68302.0,68301.0,0.18996864]
[1729401510314,0.073207,68302.0,68301.0,0.10208596]
[1729401513116,0.073207,68302.0,68301.0,0.10265693]
[1729401516326,0.02583346,68303.0,68294.0,0.3608]
[1729401516529,0.073215,68295.0,68294.0,0.3608]
[1729401516928,0.073215,68295.0,68294.0,0.580149]
[1729401518122,0.073215,68295.0,68294.0,0.219349]
[1729401518427,0.434006,68304.0,68291.0,0.21968838]
[1729401518625,0.073219,68292.0,68291.0,0.21968838]
[1729401518820,0.073219,68292.0,68291.0,0.3608]
[1729401519025,0.073219,68292.0,68291.0,0.58048838]
[1729401523222,0.0993576,68292.0,68291.0,0.58048838]
[1729401524427,0.0993576,68292.0,68291.0,0.80609319]
[1729401527221,0.0993576,68292.0,68291.0,0.58048838]
[1729401527422,0.0993576,68292.0,68291.0,0.80605845]
[1729401527619,0.0993576,68292.0,68291.0,0.87927745]
[1729401527923,0.0261386,68292.0,68291.0,0.87927745]
[1729401528135,0.3608,68298.0,68291.0,0.87927745]
[1729401528136,0.073213,68297.0,68291.0,0.87927745]
[1729401528431,0.073217,68293.0,68292.0,0.22557007]
[1729401528831,0.073217,68293.0,68292.0,0.44538137]
[1729401531438,0.073217,68293.0,68292.0,0.2198113]
[1729401532126,0.02626028,68298.0,68291.0,0.3608]
[1729401532326,0.064,68301.0,68291.0,0.3608]
[1729401532327,0.073218,68292.0,68291.0,0.3608]
[1729401535038,0.073218,68292.0,68285.0,0.07542229]
[1729401535039,0.073223,68288.0,68286.0,0.3608]
[1729401535339,0.073223,68288.0,68286.0,0.58079794]
[1729401535840,0.073223,68288.0,68286.0,0.63934376]
[1729401536035,0.073224,68287.0,68286.0,0.27854376]
[1729401536231,0.073224,68287.0,68286.0,0.63934376]
[1729401536629,0.073224,68287.0,68286.0,0.58079794]
[1729401537028,0.073224,68287.0,68286.0,0.63934136]
[1729401537232,0.073224,68287.0,68286.0,0.21999794]
[1729401539537,0.073224,68287.0,68286.0,0.44556661]
[1729401544246,0.09904038,68287.0,68286.0,0.44556661]
[1729401544646,0.09904038,68287.0,68286.0,0.21999794]
[1729401544838,0.09904038,68287.0,68286.0,0.44492379]
[1729401546454,0.09904038,68287.0,68286.0,0.21999794]
[1729401551846,0.073226,68285.0,68283.0,0.13174823]
[1729401552054,0.073227,68284.0,68283.0,0.13174823]
[1729401552355,0.073227,68284.0,68283.0,0.35257235]
[1729401552855,0.073227,68284.0,68283.0,0.2940541]
[1729401553644,0.073227,68284.0,68283.0,0.2208271]
[1729401553849,0.073227,68284.0,68280.0,0.20978154]
[1729401553850,0.073228,68283.0,68282.0,0.05852001]
[1729401554157,0.02622089,68284.0,68280.0,0.12192001]
[1729401554158,0.07323,68281.0,68280.0,0.12192001]
[1729401554458,0.07323,68281.0,68280.0,0.16610705]
[1729401555648,0.07323,68281.0,68280.0,0.10270705]
[1729401556354,0.07323,68281.0,68280.0,0.22443826]
[1729401558754,0.073231,68280.0,68279.0,0.3608]
[1729401559058,0.073231,68280.0,68279.0,0.5847211]
[1729401559450,0.073231,68280.0,68279.0,0.5849013]
[1729401559648,0.073231,68280.0,68279.0,0.46303778]
[1729401559953,0.073231,68280.0,68279.0,0.46306174]
[1729401561468,0.073231,68280.0,68279.0,0.3608]
[1729401566454,0.0994588,68281.0,68278.0,0.05852284]
[1729401566653,0.073233,68278.0,68277.0,0.05852284]
[1729401569664,0.0994588,68281.0,68277.0,0.22450849]
[1729401569966,0.073231,68280.0,68279.0,0.08778764]
[1729401570158,0.073231,68280.0,68279.0,0.10242355]
[1729401571858,0.073231,68280.0,68279.0,0.19021183]
[1729401573163,0.073231,68280.0,68279.0,0.18986245]
[1729401574863,0.073231,68280.0,68279.0,0.10207417]
[1729401575068,0.073231,68280.0,68279.0,0.18987283]
[1729401576772,0.073231,68280.0,68279.0,0.10207417]
[1729401576982,0.073231,68280.0,68279.0,0.18988057]
[1729401577280,0.073231,68280.0,68279.0,0.10207417]
[1729401582373,0.073231,68280.0,68279.0,0.22382515]
[1729401583666,0.4610188,68281.0,68277.0,0.05859304]
[1729401583868,0.073233,68278.0,68277.0,0.05859304]
[1729401584674,0.4610988,68281.0,68274.0,0.0732413]
[1729401584675,0.073236,68275.0,68274.0,0.0732413]
[1729401584873,0.073237,68274.0,68273.0,0.0732413]
[1729401585066,0.073237,68274.0,68273.0,0.10217569]
[1729401585265,0.073237,68274.0,68273.0,0.32041269]
[1729401587064,0.073237,68274.0,68273.0,0.29149025]
[1729401587271,0.073237,68274.0,68273.0,0.39369295]
[1729401587471,0.073237,68274.0,68273.0,0.29149025]
[1729401587679,0.073237,68274.0,68273.0,0.39369611]
[1729401588080,0.073237,68274.0,68273.0,0.29149025]
[1729401588275,0.073237,68274.0,68273.0,0.39369645]
[1729401590179,0.10019172,68274.0,68273.0,0.39369645]
[1729401591175,0.10019172,68274.0,68273.0,0.3204432]
[1729401591374,0.10019172,68274.0,68273.0,0.39371375]
[1729401591784,0.10019172,68274.0,68273.0,0.44229195]
[1729401596388,0.10019172,68274.0,68273.0,0.68624732]
[1729401596771,0.10019172,68274.0,68273.0,0.44229195]
[1729401596972,0.10019172,68274.0,68273.0,0.54469595]
[1729401597179,0.10019172,68274.0,68273.0,0.22405495]
[1729401602187,0.10019172,68274.0,68273.0,0.1022062]
[1729401602392,0.70019172,68274.0,68266.0,0.10460103]
[1729401602589,1.13959172,68274.0,68267.0,0.22474285]
[1729401602790,0.073243,68269.0,68268.0,0.12221239]
[1729401603292,0.10019172,68274.0,68266.0,0.00219703]
[1729401603293,0.073245,68267.0,68266.0,0.00219703]
[1729401603488,0.10019172,68274.0,68266.0,0.12284995]
[1729401603695,0.10019172,68274.0,68273.0,0.07318884]
[1729401604083,0.62695472,68274.0,68272.0,0.07318884]
[1729401604285,0.073239,68273.0,68272.0,0.07318884]
[1729401604783,0.673239,68273.0,68272.0,0.07318884]
[1729401605289,0.673239,68273.0,68270.0,0.07318884]
[1729401605290,0.073241,68271.0,68270.0,0.07318884]
[1729401605788,0.073241,68271.0,68266.0,0.00219703]
[1729401605789,0.073245,68267.0,68266.0,0.00219703]
[1729401613707,0.434045,68267.0,68266.0,0.00219703]
[1729401625421,0.073245,68267.0,68266.0,0.00219703]
[1729401625614,0.434045,68267.0,68266.0,0.00219703]
[1729401625926,0.073245,68267.0,68266.0,0.00219703]
[1729401626421,0.434045,68267.0,68266.0,0.00219703]
[1729401627415,0.073245,68267.0,68266.0,0.00219703]
[1729401627626,0.434045,68267.0,68266.0,0.00219703]
[1729401627923,0.073245,68267.0,68266.0,0.00219703]
[1729401628615,0.434045,68267.0,68266.0,0.00219703]
[1729401629126,0.073247,68265.0,68264.0,0.0304]
[1729401630124,0.434047,68265.0,68264.0,0.0304]
[1729401631116,0.434047,68265.0,68264.0,0.1035428]
[1729401631617,0.434047,68265.0,68264.0,0.2076569]
[1729401632123,0.073247,68265.0,68264.0,0.1345141]
[1729401632324,0.073247,68265.0,68264.0,0.20778257]
[1729401632520,0.073247,68265.0,68264.0,0.1345141]
[1729401633825,0.09939276,68265.0,68264.0,0.1345141]
[1729401636925,0.09939276,68265.0,68264.0,0.0304]
[1729401642723,0.09939276,68265.0,68263.0,0.0326]
[1729401642724,0.02614576,68265.0,68263.0,0.0326]
[1729401642931,0.073248,68264.0,68263.0,0.0326]
[1729401643930,0.073248,68264.0,68263.0,0.22505664]
[1729401644420,0.073248,68264.0,68263.0,0.13729761]
[1729401644921,0.073248,68264.0,68263.0,0.225249]
[1729401647727,0.073248,68264.0,68263.0,0.13729761]
[1729401648130,0.073248,68264.0,68263.0,0.225249]
[1729401648434,0.073248,68264.0,68263.0,0.13731216]
[1729401651940,0.073248,68264.0,68263.0,0.0326]
[1729401654851,0.434048,68264.0,68263.0,0.0326]
[1729401655756,0.073252,68260.0,68259.0,0.04397246]
[1729401657951,0.073254,68259.0,68258.0,0.04397246]
[1729401658341,0.073254,68259.0,68258.0,0.26453953]
[1729401658736,0.073254,68259.0,68258.0,0.04396874]
[1729401658948,0.073255,68258.0,68257.0,0.07436874]
[1729401659149,0.073255,68258.0,68257.0,0.13536938]
[1729401660145,0.073255,68258.0,68257.0,0.26046677]
[1729401661252,0.073255,68258.0,68257.0,0.26043961]
[1729401666963,0.09908258,68258.0,68257.0,0.26043961]
[1729401667544,0.09908258,68258.0,68257.0,0.13534691]
[1729401669546,0.09908258,68258.0,68257.0,0.26037838]
[1729401671646,0.09908258,68258.0,68257.0,0.13534691]
[1729401673662,0.09908258,68258.0,68257.0,0.26038393]
[1729401674254,0.09908258,68258.0,68257.0,0.0304]
[1729401682255,0.09908258,68258.0,68257.0,0.26044206]
[1729401682958,0.073255,68258.0,68257.0,0.26044206]
[1729401685169,0.073255,68258.0,68257.0,0.0304]
[1729401685360,0.073255,68258.0,68257.0,0.26078646]
[1729401690874,0.073255,68258.0,68257.0,0.26080579]
[1729401693272,0.073255,68258.0,68257.0,0.26075953]
[1729401693863,0.073255,68258.0,68257.0,0.10510515]
[1729401694077,0.073255,68258.0,68257.0,0.19306322]
[1729401694771,0.073255,68258.0,68257.0,0.10510515]
[1729401695078,0.073255,68258.0,68257.0,0.19305907]
[1729401695266,0.073255,68258.0,68257.0,0.10510515]
[1729401695464,0.073255,68258.0,68257.0,0.19305903]
[1729401695864,0.073255,68258.0,68257.0,0.10510515]
[1729401697072,0.02621347,68259.0,68256.0,0.0312]
[1729401697266,0.073256,68257.0,68256.0,0.0312]
[1729401700175,0.073259,68254.0,68253.0,0.04397426]
[1729401700873,0.073256,68257.0,68252.0,0.40477426]
[1729401700874,0.07326,68253.0,68252.0,0.40477426]
[1729401702171,0.07326,68253.0,68252.0,0.04397426]
[1729401704174,0.09977563,68257.0,68252.0,0.23050753]
[1729401704376,0.09977563,68257.0,68256.0,0.08792869]
[1729401704568,0.09977563,68257.0,68256.0,0.1930896]
[1729401706270,0.09977563,68257.0,68256.0,0.10516091]
[1729401712085,0.02651963,68257.0,68252.0,0.0439578]
[1729401712381,0.07326,68253.0,68252.0,0.0439578]
[1729401715375,0.38705835,68260.0,68251.0,0.0439578]
[1729401715574,0.073261,68252.0,68251.0,0.0439578]
[1729401718086,0.38705835,68260.0,68250.0,0.3608]
[1729401718282,0.073262,68251.0,68250.0,0.3608]
[1729401719086,0.02194368,68251.0,68250.0,0.59125229]
[1729401719285,0.38705835,68260.0,68250.0,0.59125229]
[1729401719500,0.073254,68259.0,68256.0,0.08792417]
[1729401719677,0.073256,68257.0,68256.0,0.08792417]
[1729401719883,0.073256,68257.0,68256.0,0.10514096]
[1729401720583,0.073254,68259.0,68255.0,0.07327878]
[1729401720584,0.073257,68256.0,68255.0,0.07327878]
[1729401720784,0.073257,68256.0,68255.0,0.1783177]
[1729401721291,0.073257,68256.0,68255.0,0.07327878]
[1729401721491,0.073257,68256.0,68255.0,0.17831503]
[1729401722598,0.073257,68256.0,68251.0,0.07327878]
[1729401722599,0.073261,68252.0,68251.0,0.07327878]
[1729401722888,0.073261,68252.0,68250.0,0.07327878]
[1729401722889,0.434061,68252.0,68250.0,0.07327878]
[1729401723097,0.3608,68252.0,68249.0,0.07327878]
[1729401723391,0.073263,68250.0,68249.0,0.07327878]
[1729401724184,0.073263,68250.0,68248.0,0.07327878]
[1729401725090,0.073265,68248.0,68247.0,0.07327878]
[1729401725301,0.073265,68248.0,68247.0,0.17822529]
[1729401726086,0.073265,68248.0,68247.0,0.07327878]
[1729401727209,0.38712554,68250.0,68246.0,0.0326]
[1729401727210,0.073266,68247.0,68246.0,0.0326]
[1729401737999,0.38712554,68250.0,68245.0,0.07327878]
[1729401738207,0.46038854,68250.0,68249.0,0.05852642]
[1729401739005,0.09958854,68250.0,68249.0,0.05852642]
[1729401739210,0.46038854,68250.0,68249.0,0.05852642]
[1729401740007,0.09958854,68250.0,68249.0,0.05852642]
[1729401740207,0.46038854,68250.0,68249.0,0.05852642]
[1729401740906,0.09958854,68250.0,68249.0,0.05852642]
[1729401741109,0.46038854,68250.0,68249.0,0.05852642]
[1729401741904,0.09958854,68250.0,68249.0,0.05852642]
[1729401742111,0.46038854,68250.0,68249.0,0.05852642]
[1729401742408,0.46038854,68250.0,68240.0,0.3608]
[1729401742409,0.073273,68241.0,68240.0,0.3608]
[1729401742813,0.073274,68240.0,68237.0,0.04390249]
[1729401743305,0.073274,68240.0,68239.0,0.61314353]
[1729401745409,0.073274,68240.0,68239.0,0.25234353]
[1729401745611,0.073274,68240.0,68239.0,0.61314353]
[1729401746017,0.434063,68250.0,68239.0,0.65704602]
[1729401746018,0.09056,68249.0,68239.0,0.65704602]
[1729401746307,0.073273,68242.0,68239.0,0.65704602]
[1729401746511,0.073273,68242.0,68240.0,0.04390249]
[1729401747013,0.073273,68242.0,68241.0,0.21958989]
[1729401747412,0.3868167,68250.0,68241.0,0.26349238]
[1729401747708,0.07327,68244.0,68241.0,0.11717549]
[1729401748016,0.3868167,68250.0,68241.0,0.11717549]
[1729401748017,0.073271,68243.0,68242.0,0.21889056]
[1729401748505,0.073271,68243.0,68242.0,0.26279305]
[1729401749209,0.3868167,68250.0,68242.0,0.4488608]
[1729401749404,0.3868167,68250.0,68247.0,0.08792258]
[1729401749607,0.3868167,68250.0,68248.0,0.13811526]
[1729401749806,0.4600797,68250.0,68249.0,0.10491526]
[1729401750005,0.4600797,68250.0,68249.0,0.13681526]
[1729401750202,0.4600797,68250.0,68249.0,0.13647894]
[1729401754919,0.4600797,68250.0,68249.0,0.0319]
[1729401755113,0.4600797,68250.0,68249.0,0.13654075]
[1729401759828,0.4600797,68250.0,68249.0,0.17793282]
[1729401760121,0.3868167,68250.0,68248.0,0.07329207]
[1729401761427,0.073264,68249.0,68245.0,0.08792258]
[1729401761629,0.073264,68249.0,68241.0,0.0305]
[1729401761630,0.073264,68249.0,68248.0,0.07328955]
[1729401761824,0.073264,68249.0,68248.0,0.17811123]
[1729401762424,0.073264,68249.0,68248.0,0.17716844]
[1729401762924,0.073264,68249.0,68248.0,0.07328955]
[1729401764116,0.073264,68249.0,68248.0,0.17716545]
[1729401764428,0.073271,68243.0,68242.0,0.04397119]
[1729401764732,0.073271,68243.0,68242.0,0.26493378]
[1729401765927,0.073271,68243.0,68242.0,0.22096255]
[1729401766119,0.073272,68242.0,68241.0,0.08912826]
[1729401767927,0.073272,68242.0,68241.0,0.0305]
[1729401772032,0.09923394,68242.0,68241.0,0.0305]
[1729401772227,0.09923394,68242.0,68241.0,0.22232567]
[1729401773128,0.09923394,68242.0,68241.0,0.13440309]
[1729401773325,0.09923394,68242.0,68241.0,0.2582486]
[1729401774133,0.09923394,68242.0,68241.0,0.25825155]
[1729401778439,0.09923394,68242.0,68241.0,0.25818301]
[1729401779238,0.02596194,68242.0,68241.0,0.25818301]
[1729401779432,0.073272,68242.0,68241.0,0.25818301]
[1729401781934,0.073272,68242.0,68241.0,0.25738961]
[1729401785960,0.073272,68242.0,68241.0,0.5032004]
[1729401786355,0.073272,68242.0,68241.0,0.25738961]
[1729401787457,0.073272,68242.0,68241.0,0.0305]
[1729401791967,0.38758467,68244.0,68238.0,0.07330171]
[1729401792162,0.073271,68243.0,68242.0,0.05864437]
[1729401792367,0.073272,68242.0,68240.0,0.05864437]
[1729401792560,0.3608,68244.0,68240.0,0.05864437]
[1729401792958,0.073273,68241.0,68240.0,0.05864437]
[1729401793865,0.3608,68244.0,68239.0,0.05864437]
[1729401794072,0.073274,68240.0,68239.0,0.05864437]
[1729401794265,0.073274,68240.0,68239.0,0.22715031]
[1729401794466,0.073274,68240.0,68239.0,0.10362878]
[1729401798071,0.073274,68240.0,68239.0,0.22713719]
[1729401798465,0.073274,68240.0,68239.0,0.22713044]
[1729401800661,0.3608,68244.0,68233.0,0.3608]
[1729401800868,0.3608,68244.0,68241.0,0.08791349]
[1729401801069,0.073271,68243.0,68242.0,0.10360424]
[1729401801267,0.073271,68243.0,68242.0,0.19151773]
[1729401802371,0.073272,68242.0,68241.0,0.0439553]
[1729401806574,0.073272,68242.0,68237.0,0.05860706]
[1729401806575,0.3608,68244.0,68240.0,0.0439553]
[1729401806772,0.073273,68241.0,68240.0,0.0439553]
[1729401809388,0.073273,68241.0,68240.0,0.22715244]
[1729401812968,0.073273,68241.0,68240.0,0.10362975]
[1729401813168,0.10023455,68241.0,68240.0,0.10362975]
[1729401816475,0.073274,68240.0,68239.0,0.0439694]
[1729401817480,0.3608,68244.0,68237.0,0.0323]
[1729401817481,0.073276,68238.0,68237.0,0.0323]
[1729401821687,0.073276,68238.0,68237.0,0.09091941]
[1729401822485,0.073276,68238.0,68237.0,0.0323]
[1729401822785,0.073276,68238.0,68237.0,0.09091941]
[1729401824587,0.11670282,68241.0,68237.0,0.2597842]
[1729401824790,0.073275,68239.0,68238.0,0.2274842]
[1729401825086,0.073275,68239.0,68238.0,0.22749842]
[1729401829896,0.073275,68239.0,68238.0,0.22678316]
[1729401831597,0.073275,68239.0,68238.0,0.05865306]
[1729401833093,0.073276,68238.0,68237.0,0.0323]
[1729401839493,0.073276,68238.0,68237.0,0.25917411]
[1729401842701,0.073276,68238.0,68237.0,0.25913739]
[1729401844095,0.073276,68238.0,68237.0,0.39381628]
[1729401845195,0.073276,68238.0,68237.0,0.29123739]
[1729401845596,0.073276,68238.0,68237.0,0.39381628]
[1729401846307,0.073276,68238.0,68237.0,0.29123739]
[1729401847711,0.073276,68238.0,68237.0,0.39381628]
[1729401849809,0.073276,68238.0,68237.0,0.53692182]
[1729401852817,0.073276,68238.0,68237.0,0.39386156]
[1729401853005,0.073276,68238.0,68237.0,0.53683299]
[1729401853405,0.073276,68238.0,68237.0,0.39386156]
[1729401854107,0.073276,68238.0,68237.0,0.29123739]
[1729401854616,0.02649095,68242.0,68237.0,0.12303229]
[1729401854819,0.073273,68241.0,68240.0,0.04397439]
[1729401859214,0.09968691,68241.0,68240.0,0.04397439]
[1729401861516,0.02641391,68241.0,68240.0,0.22539148]
[1729401861723,0.073273,68241.0,68240.0,0.22539148]
[1729401861915,0.3608,68244.0,68240.0,0.2255821]
[1729401862121,0.43407,68244.0,68243.0,0.08794614]
[1729401862425,0.43407,68244.0,68243.0,0.19085948]
[1729401863221,0.46043112,68244.0,68243.0,0.17085948]
[1729401863620,0.46043112,68244.0,68243.0,0.10291334]
[1729401866618,0.46043112,68244.0,68243.0,0.10282089]
[1729401876534,0.38716112,68244.0,68242.0,0.0439856]
[1729401876735,0.38716112,68244.0,68241.0,0.0439856]
[1729401876736,0.073272,68242.0,68241.0,0.0439856]
[1729401878324,0.073273,68241.0,68240.0,0.0439856]
[1729401878830,0.073271,68243.0,68240.0,0.04398319]
[1729401879137,0.073273,68241.0,68240.0,0.04398319]
[1729401880429,0.073271,68243.0,68240.0,0.04398157]
[1729401880734,0.02636112,68244.0,68240.0,0.04398157]
[1729401880943,0.0912,68246.0,68240.0,0.04398157]
[1729401881237,0.3608,68241.0,68240.0,0.04398157]
[1729401881427,0.434073,68241.0,68240.0,0.04398157]
[1729401881629,0.3608,68241.0,68238.0,0.05864747]
[1729401882028,0.3608,68241.0,68237.0,0.12304747]
[1729401882232,0.3608,68241.0,68240.0,0.04398153]
[1729401882433,0.434073,68241.0,68240.0,0.04398153]
[1729401882729,0.073275,68239.0,68238.0,0.05864747]
[1729401884638,0.51846933,68246.0,68238.0,0.05864747]
[1729401884639,0.51846933,68246.0,68238.0,0.22538951]
[1729401884843,0.43407,68244.0,68243.0,0.087962]
[1729401885032,0.43407,68244.0,68243.0,0.19078748]
[1729401885438,0.43407,68244.0,68243.0,0.10282548]
[1729401885833,0.43407,68244.0,68243.0,0.19078748]
[1729401886230,0.43407,68244.0,68243.0,0.10282548]
[1729401890039,0.1173044,68246.0,68243.0,0.10253909]
[1729401890345,0.1905724,68246.0,68245.0,0.07330917]
[1729401890932,0.5513724,68246.0,68245.0,0.07330917]
[1729401891650,0.073273,68241.0,68240.0,0.05865068]
[1729401892645,0.073276,68238.0,68237.0,0.0644]
[1729401899049,0.09990729,68238.0,68237.0,0.0644]
[1729401899651,0.09990729,68238.0,68237.0,0.28903559]
[1729401900060,0.46070729,68238.0,68237.0,0.28903559]
[1729401900246,0.46070729,68238.0,68237.0,0.28922966]
[1729401900849,0.09990729,68238.0,68237.0,0.28922966]
[1729401903553,0.09990729,68238.0,68237.0,0.28916772]
[1729401905452,0.09990729,68238.0,68237.0,0.25706772]
[1729401906750,0.09990729,68238.0,68237.0,0.0323]
[1729401914648,0.09990729,68238.0,68237.0,0.13489966]
[1729401916858,0.09990729,68238.0,68237.0,0.2571318]
[1729401918864,0.02663129,68238.0,68237.0,0.2571318]
[1729401919061,0.45248,68243.0,68237.0,0.2571318]
[1729401919257,0.073275,68239.0,68238.0,0.2248318]
[1729401921749,0.38766176,68243.0,68238.0,0.0586313]
[1729401921964,0.073275,68239.0,68238.0,0.0586313]
[1729401922660,0.073275,68239.0,68237.0,0.0909313]
[1729401922869,0.38766176,68243.0,68237.0,0.0323]
[1729401922870,0.073276,68238.0,68237.0,0.0323]
[1729401929871,0.073276,68238.0,68237.0,0.25510357]
[1729401936867,0.073276,68238.0,68237.0,0.0323]
[1729401937072,0.073276,68238.0,68237.0,0.2549651]
[1729401943777,0.073276,68238.0,68237.0,0.25507874]
[1729401944882,0.073276,68238.0,68237.0,0.09094705]
[1729401950887,0.073276,68238.0,68237.0,0.0323]
[1729401951284,0.073276,68238.0,68237.0,0.09095395]
[1729401951581,0.073276,68238.0,68237.0,0.0323]
[1729401951775,0.073276,68238.0,68237.0,0.25497799]
[1729401952087,0.48094176,68243.0,68237.0,0.25497799]
[1729401952377,0.073275,68239.0,68238.0,0.22267799]
[1729401964481,0.47946176,68243.0,68238.0,0.22190539]
[1729401964680,0.55273276,68243.0,68242.0,0.08798973]
[1729401964882,0.19193276,68243.0,68242.0,0.18922571]
[1729401965187,0.55273276,68243.0,68242.0,0.10123598]
[1729401965892,0.19193276,68243.0,68242.0,0.10123598]
[1729401966081,0.55273276,68243.0,68242.0,0.10123598]
[1729401966483,0.19193276,68243.0,68242.0,0.10123598]
[1729401966788,0.47946176,68243.0,68242.0,0.04399473]
[1729401966978,0.55273276,68243.0,68242.0,0.04399473]
[1729401969291,0.19193276,68243.0,68242.0,0.04399473]
[1729401969684,0.55273276,68243.0,68242.0,0.04399473]
[1729401971188,0.073275,68239.0,68238.0,0.05865964]
[1729401974884,0.073275,68239.0,68238.0,0.22189978]
[1729401975189,0.073275,68239.0,68238.0,0.10123342]
[1729401978595,0.073275,68239.0,68238.0,0.22195606]
[1729401978897,0.48022176,68243.0,68237.0,0.0323]
[1729401979091,0.073272,68242.0,68241.0,0.0879846]
[1729401979283,0.073272,68242.0,68241.0,0.10128182]
[1729401981198,0.073272,68242.0,68241.0,0.18926882]
[1729401982000,0.073273,68241.0,68240.0,0.04399186]
[1729401983491,0.073273,68241.0,68237.0,0.09095582]
[1729401983492,0.3608,68242.0,68239.0,0.04399186]
[1729401983698,0.073274,68240.0,68239.0,0.04399186]
[1729401984004,0.073276,68238.0,68237.0,0.0323]
[1729401984298,0.073276,68238.0,68237.0,0.09095582]
[1729401984491,0.073276,68238.0,68237.0,0.0323]
[1729401984899,0.073276,68238.0,68237.0,0.09095582]
[1729401986688,0.073276,68238.0,68237.0,0.0323]
[1729401989901,0.073276,68238.0,68237.0,0.13361708]
[1729401993500,0.073276,68238.0,68237.0,0.25430039]
[1729401996802,0.073276,68238.0,68237.0,0.0323]
[1729402001509,0.434076,68238.0,68237.0,0.0323]
[1729402003011,0.073276,68238.0,68237.0,0.0323]
[1729402004899,0.073276,68238.0,68237.0,0.25438044]
[1729402008208,0.073276,68238.0,68237.0,0.254269]
[1729402010112,0.434076,68238.0,68237.0,0.254269]
[1729402012003,0.434076,68238.0,68237.0,0.0323]
[1729402012710,0.073276,68238.0,68237.0,0.0323]
[1729402014121,0.073276,68238.0,68237.0,0.09095605]
[1729402014417,0.073276,68238.0,68237.0,0.0323]
[1729402014611,0.073276,68238.0,68237.0,0.09095605]
[1729402015206,0.073276,68238.0,68237.0,0.0323]
[1729402017520,0.073276,68238.0,68237.0,0.09095605]
[1729402017908,0.073276,68238.0,68237.0,0.0323]
[1729402018114,0.073276,68238.0,68237.0,0.09095605]
[1729402018814,0.073276,68238.0,68237.0,0.0323]
[1729402019816,0.073276,68238.0,68237.0,0.09095605]
[1729402020010,0.073276,68238.0,68237.0,0.25433707]
[1729402030018,0.073276,68238.0,68237.0,0.25446049]
[1729402030728,0.073276,68238.0,68237.0,0.15446049]
[1729402030918,0.073273,68241.0,68237.0,0.12024138]
[1729402031226,0.073275,68239.0,68238.0,0.12024138]
[1729402035028,0.073277,68237.0,68236.0,0.05866095]
[1729402042026,0.073277,68237.0,68236.0,0.12018835]
[1729402045626,0.073277,68237.0,68236.0,0.22118519]
[1729402055331,0.073272,68242.0,68236.0,0.22139231]